bitfinex/quotes_SOLUSD_20241205
["timestamp","ask_amount","ask_price","bid_price","bid_amount"]
[1733441610580,20.0,237.73,237.54,4.173]
[1733441610780,20.0,237.73,237.55,0.12549]
[1733441611396,135.9,237.76,237.55,0.12549]
[1733441612184,16.801567,237.77,237.55,0.12549]
[1733441612185,135.9,237.72,237.55,4.173]
[1733441612390,20.0,237.68,237.55,4.173]
[1733441612682,135.9,237.7,237.55,4.173]
[1733441612881,135.9,237.75,237.55,4.173]
[1733441613106,135.9,237.76,237.55,4.173]
[1733441613419,0.06679923,237.58,237.56,4.173]
[1733441614285,0.06679923,237.58,237.57,4.29849]
[1733441615211,0.06679923,237.58,237.57,0.12549]
[1733441615580,0.09118605,237.6,237.58,0.12549]
[1733441615928,0.08218404,237.62,237.58,0.12549]
[1733441616084,0.08218404,237.62,237.58,20.0]
[1733441616793,135.9,237.99,237.59,0.12549]
[1733441617006,1.679413,237.79,237.59,0.12549]
[1733441617701,135.9,237.96,237.59,0.12549]
[1733441617911,1.679413,237.81,237.59,0.12549]
[1733441618089,1.679413,237.81,237.51,4.173]
[1733441618090,135.9,237.78,237.51,4.173]
[1733441618297,141.53838068,237.78,237.51,4.173]
[1733441618698,135.9,237.74,237.52,0.12549]
[1733441619004,135.9,237.73,237.52,0.12549]
[1733441619592,135.9,237.73,237.52,20.12549]
[1733441619807,135.9,237.73,237.55,0.12549]
[1733441620598,135.9,237.73,237.54,20.0]
[1733441620599,135.9,237.73,237.54,0.12549]
[1733441620804,135.9,237.79,237.56,0.12549]
[1733441621388,135.9,237.79,237.52,0.12549]
[1733441622597,135.9,237.79,237.53,21.79983177]
[1733441622926,135.9,237.79,237.51,4.173]
[1733441622927,135.9,237.79,237.58,0.12549]
[1733441623241,135.9,237.77,237.57,20.0]
[1733441623398,135.9,237.77,237.55,20.0]
[1733441624025,137.579413,237.81,237.51,24.173]
[1733441624414,137.579413,237.81,237.52,20.0]
[1733441624932,137.579413,237.81,237.51,24.173]
[1733441625526,20.0,237.74,237.52,4.173]
[1733441625711,20.0,237.73,237.52,4.173]
[1733441625909,20.0,237.69,237.52,4.173]
[1733441626116,20.0,237.65,237.52,4.173]
[1733441626319,20.0,237.68,237.52,4.173]
[1733441626501,20.0,237.64,237.35,4.173]
[1733441626703,155.9,237.64,237.35,4.173]
[1733441626906,20.0,237.67,237.35,4.173]
[1733441627134,155.9,237.63,237.35,4.173]
[1733441627430,135.9,237.62,237.35,4.173]
[1733441627615,155.9,237.65,237.3,4.173]
[1733441627814,20.0,237.55,237.3,4.173]
[1733441628014,20.0,237.61,237.3,4.173]
[1733441628203,155.9,237.54,237.3,4.173]
[1733441628533,20.0,237.53,237.3,4.173]
[1733441628745,0.7892874,237.55,237.11,21.51776836]
[1733441628905,20.0,237.49,237.04,7.5626]
[1733441629100,0.7899193,237.48,237.04,7.5626]
[1733441629407,135.9,237.48,237.04,7.5626]
[1733441629622,20.0,237.45,237.04,7.5626]
[1733441629829,20.0,237.41,237.04,28.57663504]
[1733441630170,13.37753044,237.4,236.91,21.97830665]
[1733441630525,20.0,237.37,236.91,21.97830665]
[1733441630732,0.79023673,237.36,236.91,21.97830665]
[1733441631051,20.79023673,237.36,236.91,21.97830665]
[1733441631621,20.79023673,237.36,237.0,20.0]
[1733441631923,135.9,237.36,237.04,20.0]
[1733441632125,135.9,237.39,237.05,24.44983613]
[1733441632357,135.9,237.38,237.07,20.0]
[1733441632663,135.9,237.54,237.07,20.0]
[1733441632946,135.9,237.38,237.07,20.0]
[1733441633152,135.9,237.46,237.07,20.0]
[1733441633455,137.2230797,237.67,237.08,62.59692747]
[1733441633662,135.9,237.54,237.11,20.0]
[1733441633824,135.9,237.53,237.11,20.0]
[1733441634019,12.5876,237.71,237.11,20.0]
[1733441634020,136.68941325,237.52,237.11,20.0]
[1733441634251,135.9,237.51,237.09,2.4771]
[1733441634448,135.9,237.45,237.09,2.4771]
[1733441634664,135.9,237.54,237.09,2.4771]
[1733441634839,0.78974617,237.53,237.09,2.4771]
[1733441635027,135.9,237.53,237.09,2.4771]
[1733441635227,20.0,237.48,237.08,30.58207505]
[1733441635555,0.78995382,237.47,237.08,30.58207505]
[1733441635738,135.9,237.46,237.08,30.58207505]
[1733441636050,5.41347582,237.61,237.08,30.58207505]
[1733441636051,0.78990338,237.45,237.08,30.58207505]
[1733441636353,6.19929143,237.8,237.11,20.0]
[1733441636354,0.78975662,237.49,237.11,20.0]
[1733441636552,135.9,237.47,237.11,20.0]
[1733441636757,135.9,237.46,237.11,20.0]
[1733441636929,135.9,237.42,236.82,21.20129982]
[1733441637132,135.9,237.48,236.88,21.99238186]
[1733441637354,0.78970072,237.47,236.9,21.56193197]
[1733441637540,135.9,237.45,236.92,21.16246418]
[1733441637746,135.9,237.44,236.94,21.9587732]
[1733441637948,135.9,237.4,236.96,21.35542537]
[1733441638253,135.9,237.46,236.98,21.84543309]
[1733441638452,135.9,237.67,237.0,21.98237899]
[1733441638630,0.78942718,237.66,237.01,7.82891629]
[1733441638829,136.68942718,237.66,237.02,21.22912437]
[1733441639044,136.68942718,237.66,236.99,14.640397]
[1733441639045,135.9,237.65,237.09,20.0]
[1733441639355,0.78936486,237.64,237.13,20.0]
[1733441639559,135.9,237.63,237.14,4.34678884]
[1733441639763,0.78917623,237.62,237.14,4.34678884]
[1733441640328,135.9,237.6,237.14,3.48212745]
[1733441640555,0.7062397,237.82,237.1,3.4303]
[1733441640556,135.9,237.57,237.11,20.0]
[1733441640736,135.9,237.57,237.15,20.0]
[1733441640943,135.9,237.57,237.11,20.0]
[1733441641262,135.9,237.56,237.12,12.49]
[1733441641452,135.9,237.56,237.15,20.0]
[1733441641930,135.9,237.52,237.14,20.0]
[1733441642126,135.9,237.47,237.12,21.24451006]
[1733441642330,20.0,237.44,237.12,21.24451006]
[1733441642935,135.9,237.43,237.11,21.10682352]
[1733441643137,135.9,237.41,237.11,21.10682352]
[1733441643342,20.0,237.38,237.11,21.10682352]
[1733441643550,135.9,237.37,237.1,3.4303]
[1733441643752,20.0,237.34,237.12,4.173]
[1733441643958,19.81153706,237.34,237.12,4.173]
[1733441644159,135.9,237.33,237.12,4.173]
[1733441644342,135.9,237.33,237.13,4.173]
[1733441644542,135.9,237.31,237.13,4.173]
[1733441644929,136.69020047,237.3,237.13,4.173]
[1733441645135,136.69020047,237.3,236.6,3.4303]
[1733441645136,135.9,237.11,236.9,4.173]
[1733441645337,135.9,237.1,236.9,4.173]
[1733441645554,135.9,237.09,236.9,4.173]
[1733441645774,135.9,237.09,236.75,34.04221243]
[1733441645942,135.9,237.08,236.76,0.2289199]
[1733441646153,20.0,237.28,236.71,4.173]
[1733441646458,135.9,237.09,236.78,25.91647432]
[1733441646636,20.0,237.29,236.78,25.91647432]
[1733441646838,20.0,237.24,236.78,25.91647432]
[1733441647054,20.0,237.05,236.78,25.91647432]
[1733441647565,20.0,237.2,236.83,26.06564493]
[1733441647739,135.9,237.22,236.87,25.73499455]
[1733441648067,135.9,237.22,236.88,21.99238186]
[1733441648317,135.9,237.18,236.85,21.77346905]
[1733441648448,135.9,237.18,236.96,20.0]
[1733441648661,135.9,237.21,236.96,20.0]
[1733441648970,135.9,237.17,236.82,4.173]
[1733441649176,20.0,237.13,236.83,26.06564493]
[1733441649470,20.0,237.13,236.78,21.74347432]
[1733441649643,20.0,237.13,236.79,4.173]
[1733441649967,20.0,237.13,236.77,1.30702466]
[1733441649968,20.0,237.09,236.81,25.34005263]
[1733441650143,20.0,237.09,236.8,21.54175306]
[1733441650340,20.0,237.04,236.79,0.3836091]
[1733441650541,20.0,237.04,236.79,22.0358484]
[1733441650771,20.0,237.04,236.79,0.3836091]
[1733441650946,20.0,237.05,236.79,0.3836091]
[1733441651565,135.9,237.07,236.81,4.173]
[1733441651762,135.9,237.35,236.83,4.173]
[1733441651943,136.69053353,237.34,236.84,3.71323856]
[1733441652160,135.9,237.33,236.84,3.71323856]
[1733441652388,0.79039802,237.32,236.82,20.0]
[1733441652690,135.9,237.28,236.85,20.0]
[1733441652861,135.9,237.27,236.86,27.88623856]
[1733441653062,135.9,237.25,236.89,4.173]
[1733441653382,135.9,237.22,236.89,4.173]
[1733441653959,135.9,237.22,236.87,4.173]
[1733441654290,135.9,237.22,236.92,4.173]
[1733441654460,135.9,237.21,236.96,41.35542537]
[1733441654783,135.9,237.2,236.99,20.0]
[1733441654988,135.9,237.28,237.01,20.0]
[1733441655159,135.9,237.32,237.01,20.0]
[1733441655686,135.9,237.32,237.02,4.173]
[1733441655886,135.9,237.31,237.06,20.0]
[1733441656056,136.69018086,237.3,237.07,4.173]
[1733441656256,20.0,237.27,237.07,4.173]
[1733441656884,135.9,237.3,237.07,4.173]
[1733441657182,135.9,237.29,237.03,4.173]
[1733441657763,135.9,237.29,237.06,4.173]
[1733441658163,135.9,237.27,237.06,4.173]
[1733441658591,8.2453,237.52,237.06,4.173]
[1733441658592,135.9,237.25,237.06,4.173]
[1733441659166,135.9,237.24,237.06,4.173]
[1733441659376,135.9,237.22,237.07,4.173]
[1733441659686,20.0,237.19,237.07,4.173]
[1733441659890,135.9,237.12,237.07,4.173]
[1733441660459,135.9,237.11,236.9,4.173]
[1733441661073,135.9,237.1,236.9,4.173]
[1733441661472,135.9,237.09,236.88,26.16538186]
[1733441661765,135.9,237.09,236.72,34.19821975]
[1733441661986,0.4875568,237.27,236.72,12.49]
[1733441662199,135.9,237.26,236.72,12.49]
[1733441662386,136.69029729,237.25,236.84,12.49]
[1733441662702,135.9,237.25,236.92,4.173]
[1733441662874,135.9,237.23,236.92,4.173]
[1733441663693,135.9,237.21,236.8,4.173]
[1733441663879,135.9,237.19,236.88,4.173]
[1733441664068,135.9,237.19,236.91,4.173]
[1733441664687,135.9,237.17,236.91,4.173]
[1733441664898,135.9,237.12,236.91,4.173]
[1733441665194,135.9,237.25,236.93,4.173]
[1733441665396,135.9,237.23,236.93,40.57428737]
[1733441665691,135.9,237.26,236.95,16.663]
[1733441666096,135.9,237.24,237.03,4.173]
[1733441666478,0.4875568,237.27,237.07,16.663]
[1733441666791,0.4875568,237.27,237.11,4.173]
[1733441667586,0.4875568,237.27,237.17,12.61]
[1733441667773,0.4875568,237.27,237.24,32.61]
[1733441667979,0.4875568,237.27,237.25,20.0]
[1733441668774,0.4875568,237.27,237.16,4.173]
[1733441669002,0.4875568,237.27,237.24,20.0]
[1733441669201,0.4875568,237.27,237.24,32.61]
[1733441669812,0.4875568,237.27,237.14,20.0]
[1733441670095,0.4875568,237.27,237.15,12.61]
[1733441671682,0.4875568,237.27,237.23,12.61]
[1733441671999,0.4875568,237.27,237.26,32.61]
[1733441672204,0.4875568,237.27,237.26,20.0]
[1733441672393,0.4875568,237.27,236.96,46.73702537]
[1733441672698,0.4875568,237.27,237.05,21.0067081]
[1733441672886,0.4875568,237.27,237.05,26.69272956]
[1733441673084,0.4875568,237.27,237.07,21.24301755]
[1733441673281,0.4875568,237.27,237.19,21.13428019]
[1733441673507,0.4875568,237.27,237.23,21.18497644]
[1733441673801,0.4875568,237.27,237.26,41.56605186]
[1733441674100,0.4875568,237.27,237.26,59.86207332]
[1733441674287,135.9,237.5,237.26,54.17605186]
[1733441674612,135.9,237.49,237.26,54.17605186]
[1733441675991,135.9,237.48,237.26,41.56605186]
[1733441676189,12.0747,237.7,237.19,12.61]
[1733441676190,135.9,237.46,237.2,21.2462337]
[1733441676505,135.9,237.45,237.2,21.2462337]
[1733441676817,135.9,237.45,236.69,0.4875568]
[1733441676818,135.9,237.44,237.13,21.36427621]
[1733441676991,135.9,237.43,237.15,33.71669953]
[1733441677195,135.9,237.42,237.15,33.71669953]
[1733441677408,135.9,237.42,237.2,33.8562337]
[1733441677713,135.9,237.49,237.25,25.86537323]
[1733441677912,135.9,237.48,237.25,25.86537323]
[1733441679506,135.9,237.48,237.29,25.87223321]
[1733441679814,135.9,237.46,237.33,4.173]
[1733441680113,135.9,237.45,237.33,4.173]
[1733441680298,135.9,237.44,237.33,4.173]
[1733441681088,135.9,237.49,237.33,4.173]
[1733441681394,135.9,237.48,237.34,21.57196205]
[1733441681582,135.9,237.48,237.38,20.0]
[1733441681789,135.9,237.46,237.38,20.0]
[1733441681993,135.9,237.44,237.38,20.0]
[1733441682322,135.9,237.43,237.33,4.173]
[1733441682520,135.9,237.41,237.33,4.173]
[1733441682891,135.9,237.4,237.33,4.173]
[1733441683294,135.9,237.29,236.91,12.61]
[1733441683615,13.3269,237.42,236.85,24.92]
[1733441683616,135.9,237.26,236.93,21.36536612]
[1733441683817,135.9,237.25,236.95,21.81023536]
[1733441684016,135.9,237.25,236.96,20.78313425]
[1733441684220,135.9,237.23,237.03,21.65636291]
[1733441684407,135.9,237.23,237.05,33.6167081]
[1733441684722,135.9,237.23,237.07,21.24301755]
[1733441684922,135.9,237.22,237.1,21.18958093]
[1733441685093,135.9,237.21,237.17,20.0]
[1733441685720,20.0,237.37,237.08,5.65080902]
[1733441685914,20.0,237.32,236.95,12.61]
[1733441686118,20.0,237.32,236.9,21.87720605]
[1733441686434,135.9,237.29,236.91,21.02808326]
[1733441686608,155.9,237.25,236.9,21.87720605]
[1733441686924,135.9,237.24,236.9,21.87720605]
[1733441687502,135.9,237.23,236.86,21.42577464]
[1733441687725,135.9,237.22,236.86,42.20890889]
[1733441688018,135.9,237.22,236.88,21.00774319]
[1733441688223,135.9,237.21,236.88,41.79087744]
[1733441688414,135.9,237.21,236.87,12.61]
[1733441688415,135.9,237.21,236.9,21.87720605]
[1733441688716,135.9,237.2,236.94,20.0]
[1733441689224,135.9,237.19,236.94,25.65080902]
[1733441689428,135.9,237.19,236.98,20.0]
[1733441689603,135.9,237.17,237.03,21.65636291]
[1733441689807,135.9,237.16,237.04,20.0]
[1733441690029,112.13,237.41,237.1,20.0]
[1733441690332,112.92002206,237.4,237.1,20.0]
[1733441690542,112.13,237.4,237.1,20.0]
[1733441690840,112.92002728,237.39,237.09,4.173]
[1733441691017,112.13,237.38,237.2,4.173]
[1733441691196,0.79003136,237.37,237.2,4.173]
[1733441692125,112.13,237.36,237.24,4.173]
[1733441692322,112.13,237.34,237.28,4.173]
[1733441692538,112.13,237.34,237.3,4.173]
[1733441692696,112.13,237.33,237.32,4.173]
[1733441692897,13.3269,237.42,237.34,4.173]
[1733441693119,135.9,237.41,237.36,4.173]
[1733441693421,0.07899297,237.38,237.37,23.776884]
[1733441693634,135.9,237.37,237.15,4.173]
[1733441693835,135.9,237.37,237.17,4.173]
[1733441694047,135.9,237.35,237.2,4.173]
[1733441694199,135.9,237.34,237.24,4.173]
[1733441695419,135.9,237.34,237.22,4.173]
[1733441695600,135.9,237.34,237.32,23.776884]
[1733441695800,135.9,237.33,237.32,23.776884]
[1733441696111,0.07899297,237.38,237.32,23.776884]
[1733441696429,135.9,237.37,237.32,23.776884]
[1733441697159,0.07899297,237.38,237.32,23.776884]
[1733441697160,135.97899297,237.38,237.36,23.776884]
[1733441697454,0.07899297,237.38,237.36,23.776884]
[1733441697763,135.9,237.37,237.36,23.776884]
[1733441698056,0.07899297,237.38,237.36,23.776884]
[1733441699024,135.9,237.37,237.36,23.776884]
[1733441701029,112.123116,237.31,237.26,20.0]
[1733441701253,112.123116,237.28,237.02,21.17084319]
[1733441701458,112.123116,237.28,237.02,21.76155671]
[1733441701630,112.123116,237.28,237.04,21.67341167]
[1733441701958,112.123116,237.27,237.05,21.0067081]
[1733441702172,112.123116,237.27,237.02,4.173]
[1733441702456,112.123116,237.26,236.62,21.1255332]
[1733441702656,112.123116,237.25,236.69,21.27558602]
[1733441702834,112.123116,237.25,236.64,21.84463056]
[1733441703032,112.123116,237.24,236.66,21.45623549]
[1733441703229,112.123116,237.24,236.76,4.173]
[1733441703441,112.123116,237.24,236.91,4.173]
[1733441703654,112.2605816,237.24,236.91,4.173]
[1733441703856,112.123116,237.22,236.95,4.173]
[1733441704063,112.123116,237.22,237.03,4.173]
[1733441704741,112.123116,237.21,237.03,4.173]
[1733441705141,112.123116,237.21,236.84,4.173]
[1733441705350,112.123116,237.2,236.84,4.173]
[1733441705659,0.1374656,237.24,236.84,4.173]
[1733441705660,112.123116,237.19,236.84,4.173]
[1733441705867,112.12311598,237.18,236.86,4.173]
[1733441706053,112.12311598,237.18,236.88,4.173]
[1733441706253,112.12311598,237.18,236.9,4.173]
[1733441706467,112.12311598,237.17,236.9,16.783]
[1733441706637,112.12311598,237.16,236.9,4.173]
[1733441706953,112.12311598,237.16,237.02,4.173]
[1733441707163,112.12311598,237.15,237.02,4.173]
[1733441707963,112.12311598,237.15,236.84,4.173]
[1733441708169,112.12311598,237.14,236.84,4.173]
[1733441708673,112.12311598,237.13,236.9,26.13833963]
[1733441709061,112.12311598,237.12,236.96,4.173]
[1733441709244,112.12311598,237.09,237.0,4.173]
[1733441709568,112.12311598,237.09,236.73,14.640397]
[1733441709569,112.12311598,237.21,237.06,4.173]
[1733441709865,112.12311598,237.23,237.16,4.173]
[1733441710070,0.1374656,237.24,237.23,24.173]
[1733441710251,0.1374656,237.24,237.23,47.949884]
[1733441710739,0.1374656,237.24,237.23,53.29857777]
[1733441711141,0.5108248,237.36,237.23,47.949884]
[1733441711646,0.5108248,237.36,237.27,20.0]
[1733441711848,0.5108248,237.36,237.28,4.173]
[1733441712048,135.9,237.34,237.28,4.173]
[1733441712274,135.9,237.35,237.28,4.173]
[1733441712471,0.5108248,237.36,237.28,4.173]
[1733441712676,0.5108248,237.36,237.23,23.776884]
[1733441712677,135.9,237.35,237.23,23.776884]
[1733441712968,132.2598,237.24,236.99,21.04229222]
[1733441713274,132.2598,237.24,236.91,21.85486088]
[1733441713440,0.07832763,237.08,236.91,21.85486088]
[1733441713865,0.07832763,237.08,236.76,21.82780712]
[1733441714039,0.07832763,237.08,236.84,21.34956859]
[1733441714240,0.07832763,237.08,236.88,33.63808941]
[1733441714436,132.33812763,237.08,236.88,21.02808941]
[1733441714666,132.2598,237.04,236.76,21.82780712]
[1733441714865,132.2598,237.03,236.79,21.55128103]
[1733441715077,132.2598,237.02,236.72,12.61]
[1733441715372,132.2598,237.07,236.73,33.8921226]
[1733441715742,132.2598,237.07,236.63,0.7514]
[1733441715743,0.79091842,237.06,236.64,21.84463056]
[1733441715977,132.2598,237.05,236.64,21.84463056]
[1733441716139,132.2598,237.07,236.67,33.67807933]
[1733441716644,132.2598,237.02,236.69,33.88558602]
[1733441717245,132.2598,237.01,236.69,21.27558602]
[1733441717445,132.2598,237.01,236.39,21.25028235]
[1733441717658,132.2598,237.06,236.62,21.2657991]
[1733441717863,132.2598,237.05,236.54,21.9341553]
[1733441718174,132.2598,237.05,236.76,0.12549]
[1733441718474,132.2598,237.03,236.76,0.12549]
[1733441718785,132.2598,237.03,236.76,0.25098]
[1733441718944,0.79105687,237.02,236.55,25.77532594]
[1733441719147,132.2598,237.01,236.57,0.0226776]
[1733441719367,132.2598,237.01,236.55,34.12969524]
[1733441719873,132.2598,237.01,236.56,0.12549]
[1733441720074,132.1344,237.0,236.62,12.61]
[1733441720274,132.1344,236.99,236.71,20.0]
[1733441720479,132.1344,237.05,236.71,20.0]
[1733441720653,132.1344,237.04,236.72,0.12549]
[1733441720844,132.1344,237.04,236.71,20.0]
[1733441720845,132.92547867,237.03,236.68,20.0]
[1733441721047,132.1344,237.05,236.68,20.0]
[1733441721353,132.9255583,237.04,236.48,21.5299199]
[1733441721559,132.1344,237.03,236.54,0.12549]
[1733441721756,132.92568981,237.02,236.47,21.65137476]
[1733441722078,132.1344,237.0,236.47,21.65137476]
[1733441722245,132.1344,236.99,236.47,21.65137476]
[1733441722451,132.1344,237.0,236.51,21.09963467]
[1733441722768,132.009,236.99,236.75,21.9929449]
[1733441722943,131.8836,237.04,236.79,20.12549]
[1733441723144,131.8836,237.03,236.88,0.12549]
[1733441723363,131.8836,237.02,236.88,4.29849]
[1733441723673,131.8836,237.03,236.88,4.29849]
[1733441723985,131.8836,237.0,236.88,4.29849]
[1733441724170,131.8836,237.02,236.88,4.29849]
[1733441724344,131.8836,237.01,236.88,4.29849]
[1733441724976,131.8836,236.98,236.89,0.12549]
[1733441725553,131.8836,237.02,236.92,0.25098]
[1733441725761,131.8836,237.01,236.92,0.25098]
[1733441726156,0.07832763,237.08,236.92,0.25098]
[1733441726157,131.8836,237.02,236.92,0.25098]
[1733441726677,131.8836,237.0,236.92,0.25098]
[1733441726852,131.8836,237.0,236.91,4.173]
[1733441727050,0.07832763,237.08,236.32,215.2]
[1733441727051,110.6956685,236.88,236.58,12.61]
[1733441727272,110.6956685,236.87,236.48,4.81963237]
[1733441727476,110.6956685,236.86,236.53,34.54077346]
[1733441727683,110.6956685,236.85,236.53,34.54077346]
[1733441727854,110.4448685,236.85,236.54,34.5441553]
[1733441728047,110.4448685,236.84,236.44,21.94490485]
[1733441728273,0.07832763,237.08,236.46,21.20213293]
[1733441728274,110.4448685,236.83,236.46,21.20213293]
[1733441728450,110.4448685,236.83,236.51,12.73549]
[1733441728653,110.4448685,236.82,236.54,34.5441553]
[1733441728852,110.4448685,236.81,236.54,34.5441553]
[1733441729047,110.4448685,236.81,236.65,0.12549]
[1733441729271,110.4448685,236.8,236.55,34.12969524]
[1733441729479,110.4448685,236.87,236.63,21.05266142]
[1733441729777,110.4448685,236.86,236.52,21.96751787]
[1733441729987,110.4448685,236.85,236.46,0.12549]
[1733441730278,110.4448685,236.84,236.45,21.73031195]
[1733441730488,110.3194685,236.84,236.48,0.12549]
[1733441730775,110.3194685,236.82,236.64,22.08238801]
[1733441731172,110.3194685,236.81,236.68,20.12549]
[1733441731485,110.3194685,236.8,236.69,0.12549]
[1733441731774,12.6416,236.9,236.7,0.12549]
[1733441731976,135.9,236.86,236.74,20.0]
[1733441732172,135.9,236.85,236.78,20.0]
[1733441732378,135.9,236.85,236.8,0.12549]
[1733441732566,135.9,236.84,236.8,0.12549]
[1733441732764,135.9,236.82,236.8,0.12549]
[1733441733285,135.9,236.81,236.8,0.12549]
[1733441733460,0.04686791,236.82,236.8,0.30549]
[1733441734479,0.04686791,236.82,236.8,0.18]
[1733441735261,0.04686791,236.82,236.68,21.53637788]
[1733441735479,0.04686791,236.82,236.49,34.19018764]
[1733441735684,0.04686791,236.82,236.59,4.173]
[1733441735985,0.04686791,236.82,236.74,4.29849]
[1733441736290,0.04686791,236.82,236.77,4.29849]
[1733441737157,0.04686791,236.82,236.79,4.29849]
[1733441737556,135.9,236.81,236.79,4.29849]
[1733441737757,135.9,236.8,236.79,4.29849]
[1733441738175,0.04686791,236.82,236.79,4.29849]
[1733441738585,135.9,236.81,236.79,4.29849]
[1733441740468,135.9,236.81,236.29,12.61]
[1733441740469,63.15803417,236.8,236.42,20.0]
[1733441740685,63.15803417,236.79,236.48,33.87305504]
[1733441740989,63.15803417,236.79,236.54,12.61]
[1733441741176,63.15803417,236.79,236.53,21.63028021]
[1733441741177,63.15803417,236.78,236.57,21.15570497]
[1733441741378,63.15803417,236.77,236.57,21.03021497]
[1733441741781,63.15803417,236.76,236.52,21.45593567]
[1733441742085,63.15803417,236.76,236.51,21.60143865]
[1733441742293,63.15803417,236.76,236.51,34.21143865]
[1733441742986,63.15803417,236.76,236.53,21.63028021]
[1733441743287,42.08242361,236.73,236.69,0.12549]
[1733441743584,42.08242361,236.73,236.67,0.12549]
[1733441743783,42.08242361,236.72,236.67,0.12549]
[1733441743987,42.08242361,236.72,236.62,19.99533239]
[1733441744193,42.08242361,236.72,236.63,0.12549]
[1733441745074,20.94360051,236.8,236.63,0.12549]
[1733441745961,20.94360051,236.8,236.63,0.25098]
[1733441746193,20.94360051,236.8,236.66,0.12549]
[1733441746385,20.94360051,236.8,236.66,0.25098]
[1733441746693,20.94360051,236.77,236.74,20.0]
[1733441746987,0.04686791,236.82,236.74,20.0]
[1733441747291,135.9,236.78,236.63,21.25298699]
[1733441747491,135.9,236.77,236.63,21.25298699]
[1733441749290,135.9,236.81,236.75,0.12549]
[1733441749697,133.30986754,236.84,236.75,0.25098]
[1733441751714,133.30986754,236.83,236.74,20.0]
[1733441752271,133.30986754,236.82,236.75,0.12549]
[1733441752474,133.30986754,236.84,236.75,0.12549]
[1733441752709,133.30986754,236.84,236.72,0.12549]
[1733441753439,0.08602879,236.73,236.72,0.12549]
[1733441753909,0.07654768,236.77,236.71,21.02748847]
[1733441753910,135.9,236.89,236.75,0.25098]
[1733441754080,135.9,236.88,236.7,21.25042238]
[1733441754280,135.9,236.88,236.72,1.685412]
[1733441754503,135.9,236.88,236.71,21.15297847]
[1733441755397,135.9,236.88,236.75,0.12549]
[1733441755589,135.9,236.88,236.75,0.25098]
[1733441755784,135.9,236.87,236.75,0.25098]
[1733441756005,135.9,236.86,236.75,0.25098]
[1733441756199,132.5141,236.86,236.75,0.25098]
[1733441756883,132.5141,236.86,236.75,0.12549]
[1733441757106,132.5141,236.85,236.75,0.12549]
[1733441757418,132.5141,236.84,236.72,0.12549]
[1733441757975,132.5141,236.82,236.7,21.25042238]
[1733441758780,12.6416,236.9,236.69,24.58426327]
[1733441758781,132.5141,236.8,236.69,24.58426327]
[1733441758979,132.3887,236.79,236.7,0.12549]
[1733441759188,132.3887,236.89,236.7,0.12549]
[1733441759391,132.3887,236.88,236.7,0.12549]
[1733441759581,132.3887,236.88,236.66,21.88215306]
[1733441759795,132.3887,236.87,236.66,21.88215306]
[1733441760099,132.3887,236.87,236.69,20.0]
[1733441760498,132.3887,236.87,236.66,21.88215306]
[1733441760886,7.00943029,237.11,236.67,0.12549]
[1733441761206,3.65726718,236.86,236.66,21.88215306]
[1733441761411,20.0,236.97,236.68,21.53637788]
[1733441761710,135.9,236.95,236.66,21.88215306]